[Event "*** SCC Grand Prix: Titled Tuesday Blitz"]
[Site "Chess.com"]
[Date "2020.09.29"]
[Round "5"]
[White "katchesskat"]
[Black "Piotrek1979"]
[Result "0-1"]
[WhiteElo "2265"]
[BlackElo "2460"]
[TimeControl "180+1"]
[EndTime "10:55:08 PDT"]
[Termination "Piotrek1979 won on time"]

1. c4 {[%clk 0:03:00.9]} 1... c5 {[%clk 0:02:57.3]} 2. Nf3 {[%clk 0:03:00.3]}
2... Nc6 {[%clk 0:02:53.1]} 3. e3 {[%clk 0:02:58.9]} 3... Nf6 {[%clk 0:02:45.7]}
4. a3 {[%clk 0:02:58]} 4... g6 {[%clk 0:02:42.2]} 5. b3 {[%clk 0:02:57.5]} 5...
Bg7 {[%clk 0:02:42.1]} 6. Bb2 {[%clk 0:02:57.7]} 6... O-O {[%clk 0:02:42.5]} 7.
Qc2 {[%clk 0:02:57.4]} 7... b6 {[%clk 0:02:31.1]} 8. Be2 {[%clk 0:02:53.9]} 8...
Bb7 {[%clk 0:02:30.9]} 9. d3 {[%clk 0:02:53.8]} 9... d5 {[%clk 0:02:29.3]} 10.
cxd5 {[%clk 0:02:54.7]} 10... Qxd5 {[%clk 0:02:29]} 11. Nbd2 {[%clk 0:02:55.1]}
11... Rac8 {[%clk 0:02:25.5]} 12. Rc1 {[%clk 0:02:53.2]} 12... Rfd8 {[%clk
0:02:25]} 13. h4 {[%clk 0:02:49]} 13... Ng4 {[%clk 0:02:08]} 14. Bxg7 {[%clk
0:02:43.4]} 14... Kxg7 {[%clk 0:02:08.9]} 15. Qc3+ {[%clk 0:02:32.4]} 15... f6
{[%clk 0:02:08]} 16. h5 {[%clk 0:02:31.9]} 16... Nge5 {[%clk 0:01:59]} 17. O-O
{[%clk 0:01:21.8]} 17... Nxd3 {[%clk 0:01:57.4]} 18. Rcd1 {[%clk 0:01:20.9]}
18... Nde5 {[%clk 0:01:48.2]} 19. Nc4 {[%clk 0:01:10]} 19... Nxf3+ {[%clk
0:01:40.9]} 20. Bxf3 {[%clk 0:01:10.9]} 20... Qe6 {[%clk 0:01:40.9]} 21. Rxd8
{[%clk 0:00:40.6]} 21... Rxd8 {[%clk 0:01:39.9]} 22. Qc2 {[%clk 0:00:38.2]}
22... Na5 {[%clk 0:01:06.2]} 23. Nxa5 {[%clk 0:00:33.6]} 23... Bxf3 {[%clk
0:01:05.3]} 24. gxf3 {[%clk 0:00:32]} 24... Rd5 {[%clk 0:01:05.2]} 25. Rd1
{[%clk 0:00:18.2]} 25... bxa5 {[%clk 0:01:03.5]} 26. Rxd5 {[%clk 0:00:17.3]}
26... Qxd5 {[%clk 0:01:04.4]} 27. hxg6 {[%clk 0:00:17.6]} 27... hxg6 {[%clk
0:01:03.4]} 28. Kg2 {[%clk 0:00:17.6]} 28... a4 {[%clk 0:01:02.9]} 29. bxa4
{[%clk 0:00:17]} 29... c4 {[%clk 0:01:03.3]} 30. Qc3 {[%clk 0:00:16.5]} 30... g5
{[%clk 0:00:59.2]} 31. e4 {[%clk 0:00:15.8]} 31... Qd3 {[%clk 0:00:56.3]} 32.
Qb4 {[%clk 0:00:16.2]} 32... Kf7 {[%clk 0:00:52.6]} 33. Qb7 {[%clk 0:00:16.2]}
33... c3 {[%clk 0:00:50.7]} 34. Qb3+ {[%clk 0:00:16.3]} 34... Kg7 {[%clk
0:00:49.3]} 35. e5 {[%clk 0:00:16.6]} 35... fxe5 {[%clk 0:00:46.2]} 36. Qe6
{[%clk 0:00:15.9]} 36... Qd6 {[%clk 0:00:43.6]} 37. Qc4 {[%clk 0:00:14.4]} 37...
Qd4 {[%clk 0:00:40.8]} 38. Qe6 {[%clk 0:00:14.5]} 38... Qc5 {[%clk 0:00:40.8]}
39. Qf5 {[%clk 0:00:11]} 39... c2 {[%clk 0:00:40.7]} 40. Qxg5+ {[%clk 0:00:11]}
40... Kf7 {[%clk 0:00:41.3]} 41. Qh5+ {[%clk 0:00:10.4]} 41... Ke6 {[%clk
0:00:41.3]} 42. Qg4+ {[%clk 0:00:10.2]} 42... Kd6 {[%clk 0:00:40.7]} 43. Qg6+
{[%clk 0:00:10.3]} 43... Kc7 {[%clk 0:00:39.2]} 0-1

[Event "*** SCC Grand Prix: Titled Tuesday Blitz"]
[Site "Chess.com"]
[Date "2020.09.29"]
[Round "5"]
[White "gagtemp"]
[Black "Teidi96"]
[Result "0-1"]
[WhiteElo "1966"]
[BlackElo "2309"]
[TimeControl "180+1"]
[EndTime "10:55:08 PDT"]
[Termination "Teidi96 won by checkmate"]

1. e4 {[%clk 0:03:00.9]} 1... c5 {[%clk 0:02:59.2]} 2. Nf3 {[%clk 0:02:57.9]}
2... d6 {[%clk 0:02:59.4]} 3. d4 {[%clk 0:02:57.3]} 3... cxd4 {[%clk 0:03:00.3]}
4. Nxd4 {[%clk 0:02:57.6]} 4... Nf6 {[%clk 0:03:00.9]} 5. Nc3 {[%clk 0:02:57.4]}
5... a6 {[%clk 0:03:01.5]} 6. Be3 {[%clk 0:02:54]} 6... e5 {[%clk 0:03:01.1]} 7.
Nb3 {[%clk 0:02:53.3]} 7... Be6 {[%clk 0:03:01.7]} 8. f3 {[%clk 0:02:52.9]} 8...
Nbd7 {[%clk 0:03:00.6]} 9. Qd2 {[%clk 0:02:52.7]} 9... h5 {[%clk 0:03:00.4]} 10.
Nd5 {[%clk 0:02:50.1]} 10... Bxd5 {[%clk 0:02:58.7]} 11. exd5 {[%clk 0:02:51]}
11... Be7 {[%clk 0:02:58.7]} 12. Na5 {[%clk 0:02:46.8]} 12... Qc7 {[%clk
0:02:47.5]} 13. Be2 {[%clk 0:02:44.4]} 13... Rc8 {[%clk 0:02:32.1]} 14. c4
{[%clk 0:02:39.2]} 14... Bd8 {[%clk 0:01:54.2]} 15. b4 {[%clk 0:02:37.4]} 15...
Qb8 {[%clk 0:01:42.3]} 16. Nb3 {[%clk 0:02:36]} 16... Nb6 {[%clk 0:01:10.9]} 17.
Rc1 {[%clk 0:02:28.8]} 17... O-O {[%clk 0:00:49.9]} 18. O-O {[%clk 0:02:28.3]}
18... Re8 {[%clk 0:00:45.8]} 19. Bd3 {[%clk 0:01:58.4]} 19... g6 {[%clk
0:00:40]} 20. Rfd1 {[%clk 0:01:44.1]} 20... Nbd7 {[%clk 0:00:40]} 21. a4 {[%clk
0:01:37.3]} 21... b5 {[%clk 0:00:38.6]} 22. axb5 {[%clk 0:01:21.7]} 22... axb5
{[%clk 0:00:39.5]} 23. c5 {[%clk 0:01:12.5]} 23... Nxd5 {[%clk 0:00:32.1]} 24.
Bf2 {[%clk 0:00:58.3]} 24... Nf4 {[%clk 0:00:29.5]} 25. c6 {[%clk 0:00:50.4]}
25... Nf6 {[%clk 0:00:20.4]} 26. Be4 {[%clk 0:00:45.6]} 26... Bb6 {[%clk
0:00:19.8]} 27. Na5 {[%clk 0:00:37.5]} 27... Bxf2+ {[%clk 0:00:17.7]} 28. Qxf2
{[%clk 0:00:37.1]} 28... Nxe4 {[%clk 0:00:16.9]} 29. fxe4 {[%clk 0:00:36.4]}
29... Qc7 {[%clk 0:00:15.3]} 30. Qd2 {[%clk 0:00:35]} 30... Ne6 {[%clk 0:00:15]}
31. Qxd6 {[%clk 0:00:33.9]} 31... Nd4 {[%clk 0:00:13.3]} 32. Qxc7 {[%clk
0:00:28.1]} 32... Rxc7 {[%clk 0:00:14.2]} 33. Kf2 {[%clk 0:00:27]} 33... Rec8
{[%clk 0:00:14.4]} 34. Rc5 {[%clk 0:00:26.1]} 34... Nxc6 {[%clk 0:00:13.1]} 35.
Nxc6 {[%clk 0:00:25.4]} 35... Rxc6 {[%clk 0:00:13.6]} 36. Rxb5 {[%clk
0:00:24.5]} 36... Rc2+ {[%clk 0:00:13]} 37. Kf3 {[%clk 0:00:23.2]} 37... R8c3+
{[%clk 0:00:12.7]} 38. Rd3 {[%clk 0:00:13.5]} 38... Rxd3# {[%clk 0:00:13.6]} 0-1

[Event "*** SCC Grand Prix: Titled Tuesday Blitz"]
[Site "Chess.com"]
[Date "2020.09.29"]
[Round "5"]
[White "Onischuk_V"]
[Black "abykhovsky"]
[Result "1-0"]
[WhiteElo "2894"]
[BlackElo "2732"]
[TimeControl "180+1"]
[EndTime "10:55:09 PDT"]
[Termination "Onischuk_V won by resignation"]

1. e4 {[%clk 0:03:00.2]} 1... c5 {[%clk 0:02:59]} 2. Ne2 {[%clk 0:03:00.7]} 2...
e6 {[%clk 0:02:58.2]} 3. g3 {[%clk 0:02:58.8]} 3... Nf6 {[%clk 0:02:56.7]} 4.
Bg2 {[%clk 0:02:58.8]} 4... Nc6 {[%clk 0:02:56]} 5. O-O {[%clk 0:02:57.5]} 5...
Be7 {[%clk 0:02:50.9]} 6. Re1 {[%clk 0:02:54.5]} 6... O-O {[%clk 0:02:49.9]} 7.
Nbc3 {[%clk 0:02:50.8]} 7... d6 {[%clk 0:02:24.4]} 8. d4 {[%clk 0:02:49.3]} 8...
cxd4 {[%clk 0:02:24.5]} 9. Nxd4 {[%clk 0:02:49]} 9... Bd7 {[%clk 0:02:24.7]} 10.
Nb3 {[%clk 0:02:47.9]} 10... a6 {[%clk 0:02:23.7]} 11. a4 {[%clk 0:02:46.8]}
11... b6 {[%clk 0:02:23.7]} 12. h3 {[%clk 0:02:44.6]} 12... Rc8 {[%clk
0:02:23.3]} 13. g4 {[%clk 0:02:44.5]} 13... Nb4 {[%clk 0:02:05.7]} 14. Be3
{[%clk 0:02:31.5]} 14... Bc6 {[%clk 0:02:04.1]} 15. Nd4 {[%clk 0:02:25.4]} 15...
Ba8 {[%clk 0:02:00.3]} 16. Qd2 {[%clk 0:02:23]} 16... Nd7 {[%clk 0:01:57.2]} 17.
f4 {[%clk 0:02:20.6]} 17... Qc7 {[%clk 0:01:57.2]} 18. Rf1 {[%clk 0:02:15.1]}
18... Nc5 {[%clk 0:01:46.1]} 19. Rae1 {[%clk 0:02:13.6]} 19... Rfd8 {[%clk
0:01:35.9]} 20. f5 {[%clk 0:01:56.4]} 20... e5 {[%clk 0:01:34.4]} 21. Ndb5
{[%clk 0:01:31.8]} 21... Qd7 {[%clk 0:00:52.5]} 22. Na3 {[%clk 0:01:12.2]} 22...
d5 {[%clk 0:00:38.9]} 23. exd5 {[%clk 0:01:11.9]} 23... Nxa4 {[%clk 0:00:29.6]}
24. Nxa4 {[%clk 0:01:07.5]} 24... Qxa4 {[%clk 0:00:30.5]} 25. c4 {[%clk
0:01:05.8]} 25... b5 {[%clk 0:00:26.7]} 26. f6 {[%clk 0:00:59]} 26... gxf6
{[%clk 0:00:23]} 27. g5 {[%clk 0:00:50.6]} 27... bxc4 {[%clk 0:00:16.7]} 28.
gxf6 {[%clk 0:00:50.5]} 28... Bf8 {[%clk 0:00:16.9]} 29. Bh6 {[%clk 0:00:50]}
29... Kh8 {[%clk 0:00:16.9]} 30. Rxe5 {[%clk 0:00:21.3]} 30... Nd3 {[%clk
0:00:03.5]} 31. Rh5 {[%clk 0:00:18.7]} 31... Bc5+ {[%clk 0:00:02.4]} 32. Kh1
{[%clk 0:00:17.3]} 32... Bxd5 {[%clk 0:00:02.6]} 33. Bxd5 {[%clk 0:00:15.9]}
33... Rxd5 {[%clk 0:00:02.8]} 34. Rxd5 {[%clk 0:00:14.8]} 34... Qc6 {[%clk
0:00:02.9]} 35. Qg2 {[%clk 0:00:12]} 35... Rg8 {[%clk 0:00:02.3]} 36. Bg7+
{[%clk 0:00:12.2]} 1-0

[Event "*** SCC Grand Prix: Titled Tuesday Blitz"]
[Site "Chess.com"]
[Date "2020.09.29"]
[Round "5"]
[White "chigorin28"]
[Black "Rodalquilar"]
[Result "0-1"]
[WhiteElo "2426"]
[BlackElo "2781"]
[TimeControl "180+1"]
[EndTime "10:55:09 PDT"]
[Termination "Rodalquilar won on time"]

1. d4 {[%clk 0:03:00.9]} 1... d5 {[%clk 0:02:59.6]} 2. Nf3 {[%clk 0:03:00.3]}
2... Nf6 {[%clk 0:02:59.6]} 3. Bf4 {[%clk 0:02:59.7]} 3... c5 {[%clk 0:02:59.8]}
4. c3 {[%clk 0:02:57.7]} 4... Qb6 {[%clk 0:02:51.1]} 5. Qc1 {[%clk 0:02:57.8]}
5... Nc6 {[%clk 0:02:47.3]} 6. e3 {[%clk 0:02:58]} 6... Bf5 {[%clk 0:02:44.2]}
7. Nbd2 {[%clk 0:02:55.8]} 7... e6 {[%clk 0:02:43.4]} 8. h3 {[%clk 0:02:55.4]}
8... h6 {[%clk 0:02:43.4]} 9. Be2 {[%clk 0:02:55.7]} 9... Rc8 {[%clk 0:02:42.7]}
10. O-O {[%clk 0:02:55.3]} 10... cxd4 {[%clk 0:02:38]} 11. exd4 {[%clk
0:02:54.7]} 11... Nb4 {[%clk 0:02:26.3]} 12. Ne5 {[%clk 0:02:40.3]} 12... Nc2
{[%clk 0:02:24.6]} 13. Ndf3 {[%clk 0:01:42.4]} 13... Nxa1 {[%clk 0:02:23.4]} 14.
Qxa1 {[%clk 0:01:42.4]} 14... Be7 {[%clk 0:02:22.1]} 15. Qc1 {[%clk 0:01:35.7]}
15... Ne4 {[%clk 0:02:15.1]} 16. g4 {[%clk 0:00:59]} 16... Bh7 {[%clk
0:02:12.3]} 17. Nd2 {[%clk 0:00:44.9]} 17... f6 {[%clk 0:02:08]} 18. Nef3 {[%clk
0:00:40.3]} 18... g5 {[%clk 0:02:08.1]} 19. Bh2 {[%clk 0:00:33]} 19... h5 {[%clk
0:02:07.2]} 20. Nxe4 {[%clk 0:00:26.3]} 20... Bxe4 {[%clk 0:02:02.1]} 21. Nd2
{[%clk 0:00:22.9]} 21... Bg6 {[%clk 0:01:59.8]} 22. f4 {[%clk 0:00:18.7]} 22...
hxg4 {[%clk 0:01:50.7]} 23. fxg5 {[%clk 0:00:18.8]} 23... fxg5 {[%clk
0:01:46.1]} 24. Bxg4 {[%clk 0:00:18.8]} 24... Bh5 {[%clk 0:01:21.2]} 25. Be5
{[%clk 0:00:17.1]} 25... Bxg4 {[%clk 0:01:16.4]} 26. Bxh8 {[%clk 0:00:16.4]}
26... Bxh3 {[%clk 0:01:16.9]} 27. Re1 {[%clk 0:00:12.9]} 27... Kd7 {[%clk
0:01:15.1]} 28. Be5 {[%clk 0:00:12.1]} 28... Bg4 {[%clk 0:01:01.5]} 29. Qc2
{[%clk 0:00:11.2]} 29... Bf5 {[%clk 0:01:00.8]} 30. Qa4+ {[%clk 0:00:11.1]}
30... Rc6 {[%clk 0:00:55.4]} 31. Nb3 {[%clk 0:00:11.1]} 31... a6 {[%clk
0:00:52.3]} 32. c4 {[%clk 0:00:10.2]} 32... Qb4 {[%clk 0:00:45.9]} 33. Qxb4
{[%clk 0:00:07.5]} 33... Bxb4 {[%clk 0:00:46.8]} 34. cxd5 {[%clk 0:00:07.5]}
34... Bxe1 {[%clk 0:00:41.7]} 35. dxc6+ {[%clk 0:00:07.5]} 35... Kxc6 {[%clk
0:00:42.6]} 36. Nc5 {[%clk 0:00:06.2]} 36... Bb4 {[%clk 0:00:39.3]} 37. Nb3
{[%clk 0:00:05.6]} 37... Bd6 {[%clk 0:00:34.8]} 38. Bf6 {[%clk 0:00:05]} 38...
g4 {[%clk 0:00:33.5]} 39. Kf2 {[%clk 0:00:04.7]} 39... Kd5 {[%clk 0:00:34]} 40.
Na5 {[%clk 0:00:04.7]} 40... g3+ {[%clk 0:00:34.2]} 41. Kg1 {[%clk 0:00:04]}
41... Bf4 {[%clk 0:00:27]} 42. Nxb7 {[%clk 0:00:03.8]} 42... Be4 {[%clk
0:00:27.5]} 0-1

[Event "*** SCC Grand Prix: Titled Tuesday Blitz"]
[Site "Chess.com"]
[Date "2020.09.29"]
[Round "5"]
[White "Snegokhod"]
[Black "Vision_64"]
[Result "1-0"]
[WhiteElo "2407"]
[BlackElo "2211"]
[TimeControl "180+1"]
[EndTime "10:55:10 PDT"]
[Termination "Snegokhod won on time"]

1. e4 {[%clk 0:02:58.2]} 1... c5 {[%clk 0:02:59.6]} 2. Nf3 {[%clk 0:02:57.6]}
2... Nc6 {[%clk 0:02:59.3]} 3. d4 {[%clk 0:02:57.2]} 3... cxd4 {[%clk
0:03:00.2]} 4. Nxd4 {[%clk 0:02:55.6]} 4... Nf6 {[%clk 0:03:00.8]} 5. Nc3 {[%clk
0:02:55.1]} 5... e5 {[%clk 0:03:01]} 6. Ndb5 {[%clk 0:02:53.6]} 6... d6 {[%clk
0:02:59.1]} 7. Bg5 {[%clk 0:02:51.3]} 7... a6 {[%clk 0:02:58.6]} 8. Na3 {[%clk
0:02:44]} 8... b5 {[%clk 0:02:58.4]} 9. Nd5 {[%clk 0:02:43.4]} 9... Be7 {[%clk
0:02:50.8]} 10. Bxf6 {[%clk 0:02:42.9]} 10... gxf6 {[%clk 0:02:50.4]} 11. c4
{[%clk 0:02:40.4]} 11... b4 {[%clk 0:02:36.7]} 12. Nc2 {[%clk 0:02:38.7]} 12...
a5 {[%clk 0:02:32.8]} 13. Bd3 {[%clk 0:02:26.3]} 13... O-O {[%clk 0:02:06.2]}
14. Qh5 {[%clk 0:02:24.6]} 14... Be6 {[%clk 0:01:53.6]} 15. g4 {[%clk
0:02:20.2]} 15... Re8 {[%clk 0:01:31.8]} 16. Rg1 {[%clk 0:02:17.9]} 16... Kh8
{[%clk 0:01:28.1]} 17. Rg3 {[%clk 0:02:17]} 17... Rg8 {[%clk 0:01:24.9]} 18. f4
{[%clk 0:01:58.7]} 18... exf4 {[%clk 0:01:07.8]} 19. Nxf4 {[%clk 0:01:57.4]}
19... Rg5 {[%clk 0:01:07.6]} 20. Nxe6 {[%clk 0:01:46.7]} 20... fxe6 {[%clk
0:01:04]} 21. Qf7 {[%clk 0:01:46]} 21... Qd7 {[%clk 0:00:47]} 22. Rh3 {[%clk
0:01:33.4]} 22... Rg7 {[%clk 0:00:45.3]} 23. Qh5 {[%clk 0:01:32.8]} 23... Ne5
{[%clk 0:00:44.1]} 24. O-O-O {[%clk 0:01:29.8]} 24... Rc8 {[%clk 0:00:28]} 25.
Kb1 {[%clk 0:01:12.2]} 25... Bd8 {[%clk 0:00:17.2]} 26. Be2 {[%clk 0:01:06]}
26... Bb6 {[%clk 0:00:12.7]} 27. Qh4 {[%clk 0:01:02.4]} 27... Qf7 {[%clk
0:00:11.1]} 28. Rxd6 {[%clk 0:00:59.6]} 28... Ng6 {[%clk 0:00:10.9]} 29. Qe1
{[%clk 0:00:55.6]} 29... Nf4 {[%clk 0:00:10.8]} 30. Rf3 {[%clk 0:00:51.1]} 30...
e5 {[%clk 0:00:10.8]} 31. Rxb6 {[%clk 0:00:50.3]} 31... Rd8 {[%clk 0:00:07.2]}
32. Rf1 {[%clk 0:00:42.1]} 32... Rxg4 {[%clk 0:00:07.3]} 33. Bxg4 {[%clk
0:00:41.5]} 33... Nd3 {[%clk 0:00:05]} 34. Qe2 {[%clk 0:00:36.6]} 34... Qc7
{[%clk 0:00:04]} 35. Rbxf6 {[%clk 0:00:34.7]} 35... Nf4 {[%clk 0:00:03.2]} 36.
R6xf4 {[%clk 0:00:33.7]} 36... exf4 {[%clk 0:00:03]} 37. e5 {[%clk 0:00:34.2]}
37... Qc5 {[%clk 0:00:03]} 38. e6 {[%clk 0:00:31.4]} 38... Qe7 {[%clk
0:00:01.4]} 39. Rxf4 {[%clk 0:00:30.4]} 39... Qg5 {[%clk 0:00:01.3]} 40. e7
{[%clk 0:00:27.7]} 1-0

[Event "*** SCC Grand Prix: Titled Tuesday Blitz"]
[Site "Chess.com"]
[Date "2020.09.29"]
[Round "5"]
[White "Oleksandr_Bortnyk"]
[Black "NikolaGry"]
[Result "1-0"]
[WhiteElo "2900"]
[BlackElo "2641"]
[TimeControl "180+1"]
[EndTime "10:55:11 PDT"]
[Termination "Oleksandr_Bortnyk won on time"]

1. e4 {[%clk 0:03:00.9]} 1... e5 {[%clk 0:02:59.9]} 2. Nf3 {[%clk 0:02:53.3]}
2... d6 {[%clk 0:02:59.4]} 3. Bc4 {[%clk 0:02:47.4]} 3... Nf6 {[%clk 0:02:58.5]}
4. d3 {[%clk 0:02:39]} 4... Be7 {[%clk 0:02:57.8]} 5. h3 {[%clk 0:02:36.3]} 5...
Be6 {[%clk 0:02:50.3]} 6. Bxe6 {[%clk 0:02:34]} 6... fxe6 {[%clk 0:02:49.9]} 7.
c3 {[%clk 0:02:34.9]} 7... Nc6 {[%clk 0:02:46.4]} 8. Qb3 {[%clk 0:02:24.2]} 8...
Qc8 {[%clk 0:02:45.7]} 9. Be3 {[%clk 0:02:23.6]} 9... O-O {[%clk 0:02:34.4]} 10.
Nbd2 {[%clk 0:02:20.4]} 10... a5 {[%clk 0:02:11.7]} 11. a4 {[%clk 0:02:20.1]}
11... d5 {[%clk 0:02:11.6]} 12. g4 {[%clk 0:02:17.5]} 12... Qd7 {[%clk
0:01:59.2]} 13. Qb5 {[%clk 0:01:51.6]} 13... b6 {[%clk 0:01:34.2]} 14. O-O-O
{[%clk 0:01:46.2]} 14... Ne8 {[%clk 0:01:33.1]} 15. exd5 {[%clk 0:01:40.5]}
15... exd5 {[%clk 0:01:32.8]} 16. Rhe1 {[%clk 0:01:28.5]} 16... Rd8 {[%clk
0:01:23.7]} 17. g5 {[%clk 0:01:28.1]} 17... d4 {[%clk 0:01:06.6]} 18. cxd4
{[%clk 0:01:24.6]} 18... exd4 {[%clk 0:01:06.6]} 19. Bxd4 {[%clk 0:00:55.3]}
19... Nxd4 {[%clk 0:00:54.7]} 20. Nxd4 {[%clk 0:00:54.1]} 20... Qxd4 {[%clk
0:00:39.8]} 21. Rxe7 {[%clk 0:00:53]} 21... Nd6 {[%clk 0:00:35.9]} 22. Qb3+
{[%clk 0:00:40.9]} 22... Kh8 {[%clk 0:00:34.7]} 23. g6 {[%clk 0:00:37.5]} 23...
hxg6 {[%clk 0:00:31.3]} 24. Ne4 {[%clk 0:00:37.2]} 24... Nf5 {[%clk 0:00:16.1]}
25. Rxc7 {[%clk 0:00:34.5]} 25... Nd6 {[%clk 0:00:11.2]} 26. Nxd6 {[%clk
0:00:25.1]} 26... Rxd6 {[%clk 0:00:10.2]} 27. Kb1 {[%clk 0:00:24.2]} 27... Qxf2
{[%clk 0:00:09.3]} 28. Rdc1 {[%clk 0:00:19.4]} 28... Qf6 {[%clk 0:00:06.5]} 29.
h4 {[%clk 0:00:16.5]} 29... Kh7 {[%clk 0:00:06.5]} 30. Rh1 {[%clk 0:00:15.1]}
30... Qf3 {[%clk 0:00:03.9]} 31. Rd1 {[%clk 0:00:10.6]} 31... Rfd8 {[%clk
0:00:02.3]} 32. Rc3 {[%clk 0:00:06.1]} 32... Rd4 {[%clk 0:00:01.2]} 33. h5
{[%clk 0:00:06.4]} 1-0

[Event "*** SCC Grand Prix: Titled Tuesday Blitz"]
[Site "Chess.com"]
[Date "2020.09.29"]
[Round "5"]
[White "Skatchkov_V"]
[Black "penguingm1"]
[Result "0-1"]
[WhiteElo "2640"]
[BlackElo "2887"]
[TimeControl "180+1"]
[EndTime "10:55:11 PDT"]
[Termination "penguingm1 won by checkmate"]

1. d4 {[%clk 0:03:00.9]} 1... d5 {[%clk 0:02:51.5]} 2. c4 {[%clk 0:03:00.9]}
2... e6 {[%clk 0:02:51]} 3. Nf3 {[%clk 0:03:00.6]} 3... Nf6 {[%clk 0:02:50]} 4.
g3 {[%clk 0:03:00.7]} 4... dxc4 {[%clk 0:02:50.1]} 5. Bg2 {[%clk 0:03:00.7]}
5... Nc6 {[%clk 0:02:50.4]} 6. Qa4 {[%clk 0:02:55.6]} 6... Bd7 {[%clk
0:02:49.7]} 7. Qxc4 {[%clk 0:02:54]} 7... Na5 {[%clk 0:02:49.6]} 8. Qc2 {[%clk
0:02:51.2]} 8... Rc8 {[%clk 0:02:49.3]} 9. O-O {[%clk 0:02:37.9]} 9... c5 {[%clk
0:02:49.3]} 10. dxc5 {[%clk 0:02:30.1]} 10... Bxc5 {[%clk 0:02:47.7]} 11. Nc3
{[%clk 0:02:28.4]} 11... b5 {[%clk 0:02:41.9]} 12. a3 {[%clk 0:02:21]} 12... Nc4
{[%clk 0:02:34]} 13. Bg5 {[%clk 0:02:10.8]} 13... h6 {[%clk 0:01:34.9]} 14. Bf4
{[%clk 0:01:24.7]} 14... O-O {[%clk 0:01:19.1]} 15. Rad1 {[%clk 0:01:22.4]}
15... Qb6 {[%clk 0:00:29.8]} 16. Ne5 {[%clk 0:01:20.8]} 16... Nxe5 {[%clk
0:00:27]} 17. Bxe5 {[%clk 0:01:21.7]} 17... Ng4 {[%clk 0:00:27.7]} 18. Rxd7
{[%clk 0:00:52]} 18... Bxf2+ {[%clk 0:00:26.6]} 19. Kh1 {[%clk 0:00:43.8]} 19...
Nxe5 {[%clk 0:00:26.9]} 20. Rb7 {[%clk 0:00:41.7]} 20... Qc5 {[%clk 0:00:21.8]}
21. Rxb5 {[%clk 0:00:40.4]} 21... Qxb5 {[%clk 0:00:22.1]} 22. Rxf2 {[%clk
0:00:35.5]} 22... Ng4 {[%clk 0:00:15.4]} 23. Rf3 {[%clk 0:00:33.8]} 23... Qe5
{[%clk 0:00:12.8]} 24. Qc1 {[%clk 0:00:26.9]} 24... Rfd8 {[%clk 0:00:10.9]} 25.
h3 {[%clk 0:00:26.3]} 25... Nf6 {[%clk 0:00:10.1]} 26. Kh2 {[%clk 0:00:24.9]}
26... h5 {[%clk 0:00:04]} 27. Re3 {[%clk 0:00:17.6]} 27... Qb8 {[%clk
0:00:03.7]} 28. Kh1 {[%clk 0:00:13.4]} 28... Rd4 {[%clk 0:00:03.7]} 29. Qf1
{[%clk 0:00:12.7]} 29... Rcd8 {[%clk 0:00:04.1]} 30. b4 {[%clk 0:00:11.7]} 30...
Qc7 {[%clk 0:00:04.4]} 31. Qf3 {[%clk 0:00:10.4]} 31... Qc4 {[%clk 0:00:04.1]}
32. Na4 {[%clk 0:00:08.4]} 32... Rd1+ {[%clk 0:00:02.6]} 33. Kh2 {[%clk
0:00:08.3]} 33... Qd4 {[%clk 0:00:03.2]} 34. Nc5 {[%clk 0:00:07.7]} 34... Nd5
{[%clk 0:00:03.4]} 35. Rd3 {[%clk 0:00:07.2]} 35... Qg1# {[%clk 0:00:03.6]} 0-1

[Event "*** SCC Grand Prix: Titled Tuesday Blitz"]
[Site "Chess.com"]
[Date "2020.09.29"]
[Round "5"]
[White "Sanan_Sjugirov"]
[Black "Smirnov_Pavel"]
[Result "0-1"]
[WhiteElo "2840"]
[BlackElo "2710"]
[TimeControl "180+1"]
[EndTime "10:55:19 PDT"]
[Termination "Smirnov_Pavel won on time"]

1. e4 {[%clk 0:03:00.9]} 1... c5 {[%clk 0:02:59.3]} 2. Nf3 {[%clk 0:02:59.7]}
2... Nc6 {[%clk 0:03:00.2]} 3. d4 {[%clk 0:02:52.1]} 3... cxd4 {[%clk
0:03:01.1]} 4. Nxd4 {[%clk 0:02:52.7]} 4... Nf6 {[%clk 0:03:01.3]} 5. Nc3 {[%clk
0:02:52.6]} 5... e5 {[%clk 0:03:01.9]} 6. Ndb5 {[%clk 0:02:52.5]} 6... d6 {[%clk
0:03:02.5]} 7. Bg5 {[%clk 0:02:51.5]} 7... a6 {[%clk 0:03:02]} 8. Na3 {[%clk
0:02:51.5]} 8... b5 {[%clk 0:03:02.3]} 9. Bxf6 {[%clk 0:02:41]} 9... gxf6 {[%clk
0:03:03.2]} 10. Nd5 {[%clk 0:02:40.8]} 10... Bg7 {[%clk 0:03:03.8]} 11. c3
{[%clk 0:02:29.6]} 11... f5 {[%clk 0:03:03]} 12. exf5 {[%clk 0:01:59.7]} 12...
Bxf5 {[%clk 0:03:03.9]} 13. Nc2 {[%clk 0:01:58.9]} 13... Be6 {[%clk 0:03:04]}
14. Nce3 {[%clk 0:01:53.7]} 14... Ne7 {[%clk 0:03:02.8]} 15. g3 {[%clk
0:01:42.8]} 15... Nxd5 {[%clk 0:03:02.3]} 16. Nxd5 {[%clk 0:01:42.7]} 16... O-O
{[%clk 0:03:02.9]} 17. Bg2 {[%clk 0:01:42.3]} 17... a5 {[%clk 0:03:03]} 18. O-O
{[%clk 0:01:37.4]} 18... Rb8 {[%clk 0:03:01.6]} 19. a3 {[%clk 0:01:30.6]} 19...
f5 {[%clk 0:03:00.9]} 20. f4 {[%clk 0:01:03.1]} 20... e4 {[%clk 0:02:56.7]} 21.
Kh1 {[%clk 0:00:59.9]} 21... Kh8 {[%clk 0:02:53]} 22. Qd2 {[%clk 0:00:49]} 22...
Qc8 {[%clk 0:02:30.7]} 23. Rfd1 {[%clk 0:00:41.5]} 23... Qc5 {[%clk 0:02:29.8]}
24. Rac1 {[%clk 0:00:25.1]} 24... Rfd8 {[%clk 0:02:27.3]} 25. Ne3 {[%clk
0:00:20.2]} 25... Bb3 {[%clk 0:01:35.3]} 26. Re1 {[%clk 0:00:19.5]} 26... Rf8
{[%clk 0:01:28.9]} 27. Bh3 {[%clk 0:00:17.1]} 27... Rb6 {[%clk 0:01:22.9]} 28.
Re2 {[%clk 0:00:08.9]} 28... Be6 {[%clk 0:01:16.3]} 29. Ree1 {[%clk 0:00:07.3]}
29... d5 {[%clk 0:01:10.4]} 30. Nc2 {[%clk 0:00:05.3]} 30... Bd7 {[%clk
0:01:07.6]} 31. Nd4 {[%clk 0:00:04]} 31... Rh6 {[%clk 0:01:06.7]} 32. Bf1 {[%clk
0:00:03.6]} 32... Rb8 {[%clk 0:01:05.7]} 33. b4 {[%clk 0:00:02.3]} 33... Qa7
{[%clk 0:01:04.7]} 34. Red1 {[%clk 0:00:02.3]} 34... Bf6 {[%clk 0:00:56.7]} 35.
Kg1 {[%clk 0:00:02.7]} 35... Rg6 {[%clk 0:00:51]} 36. Bg2 {[%clk 0:00:03]} 36...
h5 {[%clk 0:00:48.1]} 37. Kf1 {[%clk 0:00:02.6]} 37... h4 {[%clk 0:00:47.7]} 38.
Qe2 {[%clk 0:00:02.8]} 38... hxg3 {[%clk 0:00:43.5]} 39. hxg3 {[%clk 0:00:03.7]}
39... Rxg3 {[%clk 0:00:37.2]} 40. Qf2 {[%clk 0:00:02.1]} 40... Rbg8 {[%clk
0:00:32.4]} 41. Bh1 {[%clk 0:00:02.4]} 41... Rh3 {[%clk 0:00:26.8]} 42. Ke2
{[%clk 0:00:01.2]} 42... Bh4 {[%clk 0:00:26.4]} 0-1